Workbook

Sheet People
B3: Data provided by the Contractor
B5: Shorter Schedule of Cost Components - People
B7: Item | C7: Category of Employment | D7: Normal Time | E7: Saturday Time - x 1.5 | F7: Sunday & PPH - x 2
B8: 1 | C8: Project Manager
B9: 2 | C9: Contract Manager
B10: 3 | C10: Commercial Manager
B11: 4 | C11: HR/IR Manager
B12: 5 | C12: Site Agent
B13: 6 | C13: Engineering Manager
B14: 7 | C14: Civil Engineer
B15: 8 | C15: Mechanical Engineer
B16: 9 | C16: Electrical Engineer
B17: 10 | C17: C&I Engineer
B18: 11 | C18: Structural Steel Engineer
B19: 12 | C19: Surveyor
B20: 13 | C20: Foreman
B21: 14 | C21: Storage Manager
B22: 15 | C22: Safety Manager
B23: 16 | C23: Senior Supervisor
B24: 17 | C24: Safety Officer
B25: 18 | C25: QA/QC Manager
B26: 19 | C26: QA/QC Inspector
B27: 20 | C27: Contracts Administrator
B28: 21 | C28: Document Controler
B29: 22 | C29: Site Clerk
B30: 23 | C30: Project Planner
B31: 24 | C31: Materials & Logistic Manager
B32: 25 | C32: Site Storeman
B33: 26 | C33: Quantity Surveyor
B34: 27 | C34: Maintenance Foreman
B35: 28 | C35: Welder
B36: 29 | C36: Electrician
B37: 30 | C37: Crane Driver
B38: 31 | C38: Driver
B39: 32 | C39: Rigger
B40: 33 | C40: Rigger Assistant
B41: 34 | C41: Skilled Labour
B42: 35 | C42: Semi Skilled Labour
B43: 36 | C43: Labour

Sheet Sheet2 (hidden)
C2: Per lum sum of 10month | E2: Per Month | F2: Total Hrs per Month | G2: Selling Rate Per Hour | H2: Cost Per Hour | I2: AL | J2: SL | K2: FRL | L2: PPH | M2: LE | N2: C | O2: SV | P2: ACC/LOA | Q2: SUB-TOTAL | R2: UIF | S2: NSL | T2: BCL | U2: DRL | V2: SUB-TOTAL | W2: IR | X2: OH | Y2: PPE | Z2: TOTAL | AA2: P/FEE | AB2: SELLING RATE
A3: Project Manager | B3: 1 | C3: 941,600.00 | D3: 941,600.00 | E3: =D3/10 -> 94,160.00 | F3: =10*26 -> 260 | G3: =E3/F3 -> 362.15 | H3: =G3/1.2 -> 301.79 | I3: =H3*0.0245 -> 7.39 | J3: =H3*0.0285 -> 8.60 | K3: =H3*0.013 -> 3.92 | L3: =H3*0.0315 -> 9.51 | M3: =H3*0.0233 -> 7.03 | N3: =ROUND(H3*0.04,2)*0.5 -> 6.04 | P3: 15.00 | Q3: =SUM(H3:P3) -> 359.29 | R3: =Q3*0.01 -> 3.59 | S3: =Q3*0.01 -> 3.59 | T3: =Q3*0.00037 -> 0.13 | U3: =Q3*0.00015 -> 0.05 | V3: =SUM(Q3:U3) -> 366.66 | W3: =V3*0.015 -> 5.50 | X3: =V3*0.02 -> 7.33 | Z3: =SUM(V3:Y3) -> 379.49 | AA3: =Z3*AC3 -> 0.00 | AB3: =SUM(Z3:AA3) -> 379.49
A4: Paralegal Contract Manager / QS | B4: 1 | C4: 856,000.00 | D4: 856,000.00 | E4: =D4/10 -> 85,600.00 | F4: =10*26 -> 260 | G4: =E4/F4 -> 329.23 | H4: =G4/1.2 -> 274.36 | I4: =H4*0.0245 -> 6.72 | J4: =H4*0.0285 -> 7.82 | K4: =H4*0.013 -> 3.57 | L4: =H4*0.0315 -> 8.64 | M4: =H4*0.0233 -> 6.39 | N4: =ROUND(H4*0.04,2)*0.5 -> 5.49 | P4: 15.00 | Q4: =SUM(H4:P4) -> 327.99 | R4: =Q4*0.01 -> 3.28 | S4: =Q4*0.01 -> 3.28 | T4: =Q4*0.00037 -> 0.12 | U4: =Q4*0.00015 -> 0.05 | V4: =SUM(Q4:U4) -> 334.72 | W4: =V4*0.015 -> 5.02 | X4: =V4*0.02 -> 6.69 | Z4: =SUM(V4:Y4) -> 346.43 | AA4: =Z4*AC4 -> 0.00 | AB4: =SUM(Z4:AA4) -> 346.43
A5: Site Project Safety Officer | B5: 1 | C5: 749,000.00 | D5: 749,000.00 | E5: 74,900.00 | F5: 260 | G5: 288.08 | H5: 240.06 | I5: 5.88 | J5: 6.84 | K5: 3.12 | L5: 7.56 | M5: 5.59 | N5: 4.80 | P5: 15.00 | Q5: 288.86 | R5: 2.89 | S5: 2.89 | T5: 0.11 | U5: 0.04 | V5: =SUM(Q5:U5) -> 294.79 | W5: 4.42 | X5: 5.90 | Z5: 305.11 | AA5: 0.00 | AB5: 305.11
A6: Senior Supervisor | B6: 1 | C6: 385,200.00 | D6: 385,200.00 | E6: 38,520.00 | F6: 260 | G6: 148.15 | H6: 123.46 | I6: 3.02 | J6: 3.52 | K6: 1.61 | L6: 3.89 | M6: 2.88 | N6: 2.47 | O6: 50.00 | P6: 15.00 | Q6: 205.85 | R6: 2.06 | S6: 2.06 | T6: 0.08 | U6: 0.03 | V6: 210.07 | W6: 3.15 | X6: 4.20 | Z6: 217.42 | AA6: 0.00 | AB6: 217.42
A7: QA/QC Manager | B7: 1 | C7: 749,000.00 | D7: 749,000.00 | E7: 74,900.00 | F7: 260 | G7: 288.08 | H7: 240.06 | I7: 5.88 | J7: 6.84 | K7: 3.12 | L7: 7.56 | M7: 5.59 | N7: 4.80 | P7: 15.00 | Q7: 288.86 | R7: 2.89 | S7: 2.89 | T7: 0.11 | U7: 0.04 | V7: 294.79 | W7: 4.42 | X7: 5.90 | Z7: 305.11 | AA7: 0.00 | AB7: 305.11
A8: Project Planner | B8: 1 | C8: 470,800.00 | D8: 470,800.00 | E8: 47,080.00 | F8: 260 | G8: 181.08 | H8: 150.90 | I8: 3.70 | J8: 4.30 | K8: 1.96 | L8: 4.75 | M8: 3.52 | N8: 3.02 | P8: 15.00 | Q8: 187.15 | R8: 1.87 | S8: 1.87 | T8: 0.07 | U8: 0.03 | V8: 190.99 | W8: 2.86 | X8: 3.82 | Z8: 197.67 | AA8: 0.00 | AB8: 197.67
A9: Site Storeman | B9: 1 | C9: 302,168.00 | D9: 302,168.00 | E9: 30,216.80 | F9: 260 | G9: 116.22 | H9: 96.85 | I9: 2.37 | J9: 2.76 | K9: 1.26 | L9: 3.05 | M9: 2.26 | N9: 1.94 | P9: 15.00 | Q9: 125.48 | R9: 1.25 | S9: 1.25 | T9: 0.05 | U9: 0.02 | V9: 128.06 | W9: 1.92 | X9: 2.56 | Z9: 132.54 | AA9: 0.00 | AB9: 132.54
A10: Site Administration Secretarial Function | B10: 1 | C10: 159,044.49 | D10: 159,044.49 | E10: 15,904.45 | F10: 260 | G10: 61.17 | H10: 50.98 | I10: 1.25 | J10: 1.45 | K10: 0.66 | L10: 1.61 | M10: 1.19 | N10: 1.02 | P10: 15.00 | Q10: 73.15 | R10: 0.73 | S10: 0.73 | T10: 0.03 | U10: 0.01 | V10: 74.65 | W10: 1.12 | X10: 1.49 | Z10: 77.27 | AA10: 0.00 | AB10: 77.27
A11: Dedicated Telehandler / Forkift Driver | B11: 1 | C11: 159,044.49 | D11: 159,044.49 | E11: 15,904.45 | F11: 260 | G11: 61.17 | H11: 50.98 | I11: 1.25 | J11: 1.45 | K11: 0.66 | L11: 1.61 | M11: 1.19 | N11: 1.02 | P11: 15.00 | Q11: 73.15 | R11: 0.73 | S11: 0.73 | T11: 0.03 | U11: 0.01 | V11: 74.65 | W11: 1.12 | X11: 1.49 | Z11: 77.27 | AA11: 0.00 | AB11: 77.27
A12: Dedicated Code 10 Driver for grit haulage | B12: 1 | C12: 159,044.49 | D12: 159,044.49 | E12: 15,904.45 | F12: 260 | G12: 61.17 | H12: 50.98 | I12: 1.25 | J12: 1.45 | K12: 0.66 | L12: 1.61 | M12: 1.19 | N12: 1.02 | P12: 15.00 | Q12: 73.15 | R12: 0.73 | S12: 0.73 | T12: 0.03 | U12: 0.01 | V12: 74.65 | W12: 1.12 | X12: 1.49 | Z12: 77.27 | AA12: 0.00 | AB12: 77.27
A13: Dedicated Diesel Mechanic for project duration | B13: 1 | C13: 499,200.00 | D13: 499,200.00 | E13: 49,920.00 | F13: 260 | G13: 192.00 | H13: 160.00 | I13: 3.92 | J13: 4.56 | K13: 2.08 | L13: 5.04 | M13: 3.73 | N13: 3.20 | P13: 15.00 | Q13: 197.53 | R13: 1.98 | S13: 1.98 | T13: 0.07 | U13: 0.03 | V13: 201.58 | W13: 3.02 | X13: 4.03 | Z13: 208.64 | AA13: 0.00 | AB13: 208.64
A14: Dedicated Electrician for project duration | B14: 1 | C14: 207,450.00 | D14: 207,450.00 | E14: 20,745.00 | F14: 260 | G14: 79.79 | H14: 66.49 | I14: 1.63 | J14: 1.89 | K14: 0.86 | L14: 2.09 | M14: 1.55 | N14: 1.33 | P14: 15.00 | Q14: 90.85 | R14: 0.91 | S14: 0.91 | T14: 0.03 | U14: 0.01 | V14: 92.72 | W14: 1.39 | X14: 1.85 | Z14: 95.96 | AA14: 0.00 | AB14: 95.96
A15: Blast cleaners / Airless Applicators | H15: 58.03 | I15: 1.42 | J15: =H15*0.0285 -> 1.65 | K15: =H15*0.013 -> 0.75 | L15: =H15*0.0315 -> 1.83 | M15: =H15*0.0233 -> 1.35 | N15: =ROUND(H15*0.04,2)*0.5 -> 1.16 | P15: 15.00 | Q15: =SUM(H15:P15) -> 81.20 | R15: =Q15*0.01 -> 0.81 | S15: =Q15*0.01 -> 0.81 | T15: =Q15*0.00037 -> 0.03 | U15: =Q15*0.00015 -> 0.01 | V15: =SUM(Q15:U15) -> 82.87 | W15: 1.24 | X15: =V15*0.02 -> 1.66 | Z15: =SUM(V15:Y15) -> 85.77 | AA15: =Z15*AC15 -> 0.00 | AB15: =SUM(Z15:AA15) -> 85.77
A16: Rubber Liner | H16: 78.50 | I16: 1.92 | J16: 2.24 | K16: 1.02 | L16: 2.47 | M16: 1.83 | N16: 1.57 | P16: 15.00 | Q16: 104.55 | R16: 1.05 | S16: 1.05 | T16: 0.04 | U16: 0.02 | V16: 106.70 | W16: 1.60 | X16: 2.13 | Z16: 110.43 | AA16: 0.00 | AB16: 110.43
A17: Rubber Liner / Applicator | H17: 78.50 | I17: 1.92 | J17: 2.24 | K17: 1.02 | L17: 2.47 | M17: 1.83 | N17: 1.57 | P17: 15.00 | Q17: 104.55 | R17: 1.05 | S17: 1.05 | T17: 0.04 | U17: 0.02 | V17: 106.70 | W17: 1.60 | X17: 2.13 | Z17: 110.43 | AA17: 0.00 | AB17: 110.43
A18: Applicator | H18: 58.03 | I18: 1.42 | J18: 1.65 | K18: 0.75 | L18: 1.83 | M18: 1.35 | N18: 1.16 | P18: 15.00 | Q18: 81.20 | R18: 0.81 | S18: 0.81 | T18: 0.03 | U18: 0.01 | V18: 82.87 | W18: 1.24 | X18: 1.66 | Z18: 85.77 | AA18: 0.00 | AB18: 85.77
A19: Blast cleaners | H19: 58.03 | I19: 1.42 | J19: 1.65 | K19: 0.75 | L19: 1.83 | M19: 1.35 | N19: 1.16 | P19: 15.00 | Q19: 81.20 | R19: 0.81 | S19: 0.81 | T19: 0.03 | U19: 0.01 | V19: 82.87 | W19: 1.24 | X19: 1.66 | Z19: 85.77 | AA19: 0.00 | AB19: 85.77
A20: Pot Operators | H20: 58.03 | I20: 1.42 | J20: 1.65 | K20: 0.75 | L20: 1.83 | M20: 1.35 | N20: 1.16 | P20: 15.00 | Q20: 81.20 | R20: 0.81 | S20: 0.81 | T20: 0.03 | U20: 0.01 | V20: 82.87 | W20: 1.24 | X20: 1.66 | Z20: 85.77 | AA20: 0.00 | AB20: 85.77
A21: Airless Assistants | H21: 58.03 | I21: 1.42 | J21: 1.65 | K21: 0.75 | L21: 1.83 | M21: 1.35 | N21: 1.16 | P21: 15.00 | Q21: 81.20 | R21: 0.81 | S21: 0.81 | T21: 0.03 | U21: 0.01 | V21: 82.87 | W21: 1.24 | X21: 1.66 | Z21: 85.77 | AA21: 0.00 | AB21: 85.77
A22: Casual | H22: 42.15 | I22: 1.03 | J22: 1.20 | K22: 0.55 | L22: 1.33 | M22: 0.98 | N22: 0.85 | P22: 15.00 | Q22: 63.09 | R22: 0.63 | S22: 0.63 | T22: 0.02 | U22: 0.01 | V22: 64.38 | W22: 0.97 | X22: 1.29 | Z22: 66.63 | AA22: 0.00 | AB22: 66.63

Sheet Material (hidden)
B3: DAYWORKS - MATERIAL
B5: Item | C5: Category of Material | D5: Unit | E5: Rate
B6: 1 | C6: Blasting Grit - (min 32ton loads delivered to site . 50kg bags plastic wrapped | D6: Per ton | E6: R2,142.22
B7: 2 | C7: Blasting Grit (1,5ton bags) - (min 32ton loads delivered to site) | D7: Per bag | E7: R1,890.00
B8: 3 | C8: Polyglass VE - (20L Kit) | D8: Per kit | E8: R24,612.30
B9: 4 | C9: Polyglass VEF - (20L Kit) | D9: Per kit | E9: R24,657.61
B10: 5 | C10: Flexible Laminating Resin (20L Kit) | D10: Per kit | E10: R28,812.66
B11: 6 | C11: ECP - (20L Kit) | D11: Per kit | E11: R20,050.11
B12: 7 | C12: ZIP- E (20L Kit) | D12: Per kit | E12: R18,021.96
B13: 8 | C13: GENMED - (1L Kit) | D13: Per kit | E13: R1,854.44
B14: 9 | C14: Polymer concrete - Epoxy (20L Kit) | D14: Per kit | E14: R6,381.10
B15: 10 | C15: Corrofill E (Epoxy) putty - (20L Kit) | D15: Per kit | E15: =20415.2 -> R20,415.20
B16: 11 | C16: Corrofill VE (Vinly Ester) putty - (20L Kit) | D16: Per kit | E16: R23,993.58
B17: 12 | C17: GLASS FIBRE GRP Laminate WR - WOVEN ROVING - 1layer | D17: m² | E17: R2,420.00
B18: 13 | C18: GLASS FIBRE GRP Laminate WR - WOVEN ROVING - 2layer | D18: m² | E18: =E17*1.5 -> R3,630.00
B19: 14 | C19: GLASS FIBRE GRP Laminate WR - WOVEN ROVING - 3layer | D19: m² | E19: =E18*1.5 -> R5,445.00
B20: 15 | C20: 600 Laminating Resin | D20: m² | E20: R828.40
B21: 16 | C21: Wrapping Band EZR 100mm wide - Visco Elastic | D21: Linear Meter | E21: R388.00
B22: 17 | C22: GRP Laminate 100mm wide bandage | D22: Linear Meter | E22: R353.00
B23: 18 | C23: Polyglass FR coating - (20L Kit) | D23: Per kit | E23: R28,680.88
B24: 19 | C24: wattman salt test kits - 100 off papers per Kit | D24: Each | E24: R1,300.00
B25: 20 | C25: Diesel Per Liter | D25: Per Liter | E25: R28.00
B26: 21 | C26: MEK cleanig solvert | D26: Per Liter | E26: R53.00
B27: 22 | C27: Comsumables , brushes, gloves, digitical Scale ,mixing bowls, masking material, rags, styrene, Catalyst | D27: m² | E27: R187.00

Sheet Equipment
B2: Data provided by the Contractor
B4: Shorter Schedule of Cost Components - Equipment
B6: Item | C6: Category of Equipment | D6: Daily
B7: 1 | C7: Storage - 6M
B8: 1 | C8: Storage - 12M
B9: 2 | C9: Offices - 6M
B10: 3 | C10: Offices - 12M
B11: 4 | C11: Tool Stores
B12: 5 | C12: L.D.V.
B13: 6 | C13: 65 Seater Bus
B14: 7 | C14: 22 Seater Bus
B15: 8 | C15: 15 Seater Bus
B16: 9 | C16: 10T Truck
B17: 10 | C17: Chemical Toilets
B18: 11 | C18: Generator - 150Kva
B19: 12 | C19: Small Tools & Equipment (compactors, rollers, hand tools)
B20: 13 | C20: TLB
B21: 14 | C21: Grader
B22: 15 | C22: Roller
B23: 16 | C23: Water Tanker
B24: 17 | C24: Cherry picker
B25: 18 | C25: Forklift
B26: 19 | C26: Scaffolding
B27: 20 | C27: Barricading
B28: 21 | C28: Crane 30t
B29: 22 | C29: Crane 50t
B30: 23 | C30: Crane 80t
B31: 24 | C31: Crane 100t
B32: 25 | C32: Crane 160t
B33: 26 | C33: Crane 250t
B34: 27 | C34: Crane 300t
B35: 28 | C35: Crane 400t

Sheet Sheet1
B3: Data provided by the Contractor
B5: Shorter Schedule of Cost Components - People
B7: Item | C7: Category of Employment | D7: Normal Time | E7: Saturday Time - x 1.5 | F7: Sunday & PPH - x 2
B8: 1 | C8: Project Manager
B9: 2 | C9: Contract Manager
B10: 3 | C10: Commercial Manager
B11: 4 | C11: HR/IR Manager
B12: 5 | C12: Site Agent
B13: 6 | C13: Engineering Manager
B14: 7 | C14: Civil Engineer
B15: 8 | C15: Mechanical Engineer
B16: 9 | C16: Electrical Engineer
B17: 10 | C17: C&I Engineer
B18: 11 | C18: Structural Steel Engineer
B19: 12 | C19: Surveyor
B20: 13 | C20: Foreman
B21: 14 | C21: Storage Manager
B22: 15 | C22: Safety Manager
B23: 16 | C23: Senior Supervisor
B24: 17 | C24: Safety Officer
B25: 18 | C25: QA/QC Manager
B26: 19 | C26: QA/QC Inspector
B27: 20 | C27: Contracts Administrator
B28: 21 | C28: Document Controler
B29: 22 | C29: Site Clerk
B30: 23 | C30: Project Planner
B31: 24 | C31: Materials & Logistic Manager
B32: 25 | C32: Site Storeman
B33: 26 | C33: Quantity Surveyor
B34: 27 | C34: Maintenance Foreman
B35: 28 | C35: Welder
B36: 29 | C36: Electrician
B37: 30 | C37: Crane Driver
B38: 31 | C38: Driver
B39: 32 | C39: Rigger
B40: 33 | C40: Rigger Assistant
B41: 34 | C41: Skilled Labour
B42: 35 | C42: Semi Skilled Labour
B43: 36 | C43: Labour
B45: Item | C45: Category of Equipment | D45: Daily
B46: 1 | C46: Storage - 6M
B47: 1 | C47: Storage - 12M
B48: 2 | C48: Offices - 6M
B49: 3 | C49: Offices - 12M
B50: 4 | C50: Tool Stores
B51: 5 | C51: L.D.V.
B52: 6 | C52: 65 Seater Bus
B53: 7 | C53: 22 Seater Bus
B54: 8 | C54: 15 Seater Bus
B55: 9 | C55: 10T Truck
B56: 10 | C56: Chemical Toilets
B57: 11 | C57: Generator - 150Kva
B58: 12 | C58: Small Tools & Equipment (compactors, rollers, hand tools)
B59: 13 | C59: TLB
B60: 14 | C60: Grader
B61: 15 | C61: Roller
B62: 16 | C62: Water Tanker
B63: 17 | C63: Cherry picker
B64: 18 | C64: Forklift
B65: 19 | C65: Scaffolding
B66: 20 | C66: Barricading
B67: 21 | C67: Crane 30t
B68: 22 | C68: Crane 50t
B69: 23 | C69: Crane 80t
B70: 24 | C70: Crane 100t
B71: 25 | C71: Crane 160t
B72: 26 | C72: Crane 250t
B73: 27 | C73: Crane 300t
B74: 28 | C74: Crane 400t
